bitfinex-derivatives/quotes_SOLF0:USTF0_20241016
["timestamp","ask_amount","ask_price","bid_price","bid_amount"]
[1729097110313,3.2401,154.34,154.24,83.95]
[1729097110314,5.4,154.33,154.17,2.99809189]
[1729097110504,13.99,154.32,154.22,13.99]
[1729097110806,13.99,154.32,154.23,3.2422]
[1729097110807,3.2411,154.29,154.23,3.2422]
[1729097111005,13.99,154.32,154.23,3.2422]
[1729097111205,13.99,154.32,154.22,22.58866105]
[1729097111503,5.4,154.33,154.26,13.99]
[1729097111896,3.2412,154.29,154.26,13.99]
[1729097112101,3.2412,154.29,154.25,3.2417]
[1729097112697,19.39,154.33,154.24,13.99]
[1729097113004,19.39,154.33,154.22,3.19866105]
[1729097113005,13.99,154.31,154.22,13.99]
[1729097113203,13.99,154.31,154.22,17.17732057]
[1729097113398,13.99,154.31,154.22,3.18732057]
[1729097113598,13.99,154.29,154.21,1.344]
[1729097113907,5.4,154.28,154.21,1.344]
[1729097114204,3.2421,154.25,154.21,4.52218137]
[1729097114407,5.4,154.28,154.21,4.52218137]
[1729097114608,3.2421,154.25,154.21,4.52218137]
[1729097114811,5.4,154.28,154.21,4.52218137]
[1729097115110,3.2423,154.24,154.21,4.52218137]
[1729097115604,5.4,154.28,154.21,4.52218137]
[1729097115811,3.2425,154.23,154.21,3.17818137]
[1729097116007,3.2425,154.23,154.18,17.2333]
[1729097116307,3.2425,154.23,154.18,3.2433]
[1729097117100,3.2422,154.24,154.19,3.243]
[1729097117609,3.2422,154.24,154.19,13.99]
[1729097117808,3.2426,154.23,154.18,3.2433]
[1729097118105,13.99,154.27,154.16,13.99]
[1729097118311,13.99,154.27,154.18,13.99]
[1729097118513,3.2423,154.24,154.2,3.2429]
[1729097118709,13.99,154.27,154.2,3.2429]
[1729097118910,3.2421,154.25,154.21,3.2427]
[1729097119107,3.2421,154.25,154.21,6.5451311]
[1729097119812,8.1049,154.28,154.21,6.5451311]
[1729097120000,3.2421,154.24,154.21,6.5451311]
[1729097122013,3.2416,154.27,154.23,3.2422]
[1729097122314,3.2416,154.27,154.23,13.99]
[1729097122709,3.2416,154.27,154.24,3.2421]
[1729097122910,5.4,154.29,154.23,13.99]
[1729097123415,3.2409,154.3,154.25,13.99]
[1729097123716,5.4,154.31,154.25,13.99]
[1729097124415,3.2409,154.3,154.27,3.2414]
[1729097124814,3.2409,154.3,154.25,13.99]
[1729097125220,5.4,154.31,154.25,13.99]
[1729097125422,3.2413,154.28,154.25,13.99]
[1729097125604,5.4,154.31,154.27,3.2414]
[1729097125810,5.4,154.31,154.25,13.99]
[1729097126310,5.4,154.31,154.27,3.2413]
[1729097126508,5.4,154.37,154.29,13.99]
[1729097126710,5.4,154.37,154.29,17.21303422]
[1729097126906,3.2409,154.3,154.29,3.22303422]
[1729097127117,19.39,154.33,154.23,13.99]
[1729097127412,5.4,154.32,154.23,17.2322]
[1729097127611,5.4,154.32,154.23,13.99]
[1729097127612,3.2416,154.27,154.23,13.99]
[1729097128213,3.2416,154.27,154.24,3.242]
[1729097128415,3.2414,154.28,154.23,13.99]
[1729097128609,3.2414,154.28,154.23,19.39]
[1729097129212,13.99,154.28,154.22,1.3843]
[1729097129418,19.39,154.28,154.22,1.3843]
[1729097129919,3.2421,154.25,154.22,1.3843]
[1729097130916,19.39,154.28,154.22,1.3843]
[1729097131116,3.2416,154.27,154.24,3.242]
[1729097131328,5.4,154.28,154.22,1.3843]
[1729097131522,3.2417,154.27,154.22,1.3843]
[1729097131816,5.4,154.28,154.22,1.3843]
[1729097132215,3.2419,154.25,154.22,4.6267]
[1729097132721,3.2418,154.26,154.23,3.2423]
[1729097133924,8.6413,154.28,154.22,15.3743]
[1729097134326,3.2413,154.28,154.25,3.2418]
[1729097134521,22.1744,154.31,154.25,3.2418]
[1729097134720,3.2415,154.27,154.25,3.2418]
[1729097135023,22.1744,154.31,154.22,15.3743]
[1729097135219,3.2412,154.29,154.22,15.3743]
[1729097135418,1.3629,154.31,154.24,13.99]
[1729097135612,5.4,154.33,154.24,19.39]
[1729097135825,3.2406,154.32,154.26,13.99]
[1729097136019,3.2406,154.32,154.24,5.4]
[1729097136020,16.7215,154.37,154.28,13.99]
[1729097136324,5.4,154.36,154.28,13.99]
[1729097136720,5.4,154.36,154.32,3.2403]
[1729097136913,3.24,154.35,154.32,6.51530502]
[1729097137129,3.24,154.35,154.32,3.2403]
[1729097137425,3.24,154.35,154.33,3.2402]
[1729097137623,3.24,154.35,154.33,6.41149382]
[1729097139731,3.2394,154.38,154.35,3.2397]
[1729097139925,3.2394,154.38,154.32,13.99]
[1729097139926,16.7784,154.43,154.32,19.39]
[1729097140228,3.2391,154.39,154.36,3.2394]
[1729097140421,5.4,154.42,154.32,22.56435339]
[1729097140821,3.239,154.39,154.34,3.2399]
[1729097141021,5.4,154.42,154.32,22.56435339]
[1729097141423,3.2394,154.37,154.35,3.2398]
[1729097141720,3.2394,154.37,154.32,22.56435339]
[1729097142125,3.2394,154.37,154.34,3.2399]
[1729097142923,5.4,154.42,154.32,22.56435339]
[1729097142924,3.2402,154.34,154.32,3.17435339]
[1729097143130,3.2402,154.34,154.31,8.6406]
[1729097143522,3.2402,154.34,154.32,3.2404]
[1729097144029,3.2399,154.35,154.32,3.2404]
[1729097144231,13.99,154.41,154.34,3.24]
[1729097144634,13.99,154.41,154.31,8.63820905]
[1729097144817,13.99,154.41,154.32,13.99]
[1729097145021,13.99,154.41,154.34,3.2399]
[1729097145530,3.2396,154.37,154.34,3.2399]
[1729097146727,3.2398,154.36,154.32,13.99]
[1729097147532,3.2398,154.36,154.33,3.2401]
[1729097148032,3.24,154.35,154.32,3.2404]
[1729097148327,13.99,154.41,154.31,8.63820905]
[1729097148730,13.99,154.41,154.33,3.2401]
[1729097149834,3.2397,154.36,154.33,3.2401]
[1729097150037,13.99,154.37,154.31,3.23820905]
[1729097150227,13.99,154.37,154.3,4.5808]
[1729097150533,3.2401,154.34,154.3,1.3401]
[1729097150732,3.2401,154.34,154.31,3.2405]
[1729097151524,3.2401,154.34,154.31,6.4570022]
[1729097152034,13.99,154.37,154.31,6.4570022]
[1729097152731,3.2402,154.34,154.31,6.4570022]
[1729097153033,13.99,154.37,154.31,3.2165022]
[1729097153229,3.2406,154.32,154.27,19.49]
[1729097153832,3.2406,154.32,154.29,3.2411]
[1729097154031,3.2406,154.32,154.29,6.47648894]
[1729097155932,3.2406,154.32,154.29,3.23538894]
[1729097156130,3.2406,154.32,154.3,3.2409]
[1729097156434,3.2406,154.32,154.3,6.41805801]
[1729097157828,3.2407,154.31,154.3,3.17715801]
[1729097158135,5.5,154.34,154.27,3.2414]
[1729097158527,3.241,154.3,154.27,3.2414]
[1729097159537,3.241,154.3,154.28,3.2413]
[1729097160432,3.241,154.3,154.27,17.2314]
[1729097160632,5.5,154.34,154.27,3.2414]
[1729097160833,13.99,154.33,154.23,13.99]
[1729097161033,13.99,154.31,154.23,13.99]
[1729097161228,13.99,154.29,154.21,3.18251941]
[1729097161431,8.2749,154.28,154.19,13.99]
[1729097161635,8.2749,154.28,154.2,3.2429]
[1729097161833,3.2419,154.26,154.19,13.99]
[1729097162035,8.2749,154.28,154.2,3.2429]
[1729097162428,8.2749,154.28,154.19,13.99]
[1729097162634,3.2427,154.22,154.19,17.2331]
[1729097164240,5.5,154.24,154.15,15.4166]
[1729097164544,5.5,154.24,154.15,19.49]
[1729097164940,5.5,154.24,154.16,3.2437]
[1729097165146,5.5,154.24,154.15,19.49]
[1729097165334,5.5,154.24,154.17,13.99]
[1729097165641,5.5,154.24,154.18,3.2432]
[1729097165941,5.5,154.24,154.17,13.99]
[1729097166344,3.2424,154.23,154.2,3.243]
[1729097166546,5.5,154.25,154.2,3.243]
[1729097166741,3.2423,154.24,154.21,3.2427]
[1729097166941,5.5,154.25,154.21,3.23204909]
[1729097167141,5.5,154.25,154.19,13.99]
[1729097167854,3.2426,154.22,154.19,17.2331]
[1729097168139,3.2426,154.22,154.19,3.2431]
[1729097168942,3.2422,154.24,154.21,3.2427]
[1729097169145,3.2422,154.24,154.21,6.48936103]
[1729097169342,5.5,154.27,154.21,17.23666103]
[1729097169642,3.2417,154.26,154.23,3.2423]
[1729097170145,3.2419,154.25,154.23,3.2423]
[1729097170838,3.2419,154.25,154.21,17.23666103]
[1729097171143,5.5,154.27,154.21,17.23666103]
[1729097171344,3.2422,154.24,154.21,17.23666103]
[1729097171747,3.2422,154.24,154.21,20.47926103]
[1729097171945,3.2422,154.24,154.21,6.48926103]
[1729097173453,3.242,154.25,154.22,3.2424]
[1729097173661,2.7749,154.28,154.21,3.24666103]
[1729097173956,1.3604,154.28,154.24,3.242]
[1729097174145,1.3604,154.28,154.2,13.99]
[1729097174146,5.5,154.29,154.21,3.31800233]
[1729097174342,16.7161,154.33,154.23,13.99]
[1729097174539,3.241,154.3,154.23,13.99]
[1729097174739,5.5,154.32,154.23,13.99]
[1729097174946,15.3659,154.33,154.23,19.49]
[1729097175148,20.8659,154.33,154.27,3.2413]
[1729097175351,20.8659,154.33,154.23,19.49]
[1729097175647,3.2414,154.28,154.25,3.2418]
[1729097176753,3.2411,154.3,154.26,3.2416]
[1729097176960,3.2411,154.3,154.25,13.99]
[1729097177140,3.2411,154.3,154.26,1.4065]
[1729097177341,3.2411,154.3,154.27,3.2413]
[1729097177547,20.8659,154.33,154.26,1.4065]
[1729097177850,20.8659,154.33,154.26,4.6482]
[1729097178152,3.2412,154.29,154.26,4.6482]
[1729097178456,20.8659,154.33,154.26,1.4065]
[1729097178652,3.2413,154.29,154.26,1.4065]
[1729097179253,3.2415,154.28,154.23,19.49]
[1729097179653,3.2415,154.28,154.25,3.2418]
[1729097180651,3.241,154.3,154.27,3.2414]
[1729097180851,20.8659,154.33,154.23,19.49]
[1729097181454,3.2409,154.3,154.23,19.49]
[1729097182558,3.2409,154.3,154.25,3.2419]
[1729097182859,3.2409,154.3,154.23,19.49]
[1729097183358,3.2409,154.3,154.25,13.99]
[1729097183970,3.2408,154.31,154.28,3.2413]
[1729097184467,3.2403,154.33,154.29,3.2409]
[1729097184670,1.3358,154.37,154.29,17.22599837]
[1729097184862,5.4,154.38,154.31,13.99]
[1729097185055,20.7258,154.42,154.33,13.99]
[1729097185261,6.7358,154.42,154.33,13.99]
[1729097185668,3.2387,154.41,154.33,13.99]
[1729097185869,6.7358,154.42,154.33,13.99]
[1729097186065,3.2387,154.41,154.38,3.2392]
[1729097186261,3.2387,154.41,154.32,1.3599]
[1729097186262,3.2387,154.41,154.35,13.99]
[1729097186462,72.18261992,154.45,154.35,19.39]
[1729097186764,5.4,154.44,154.4,3.2386]
[1729097186964,5.4,154.44,154.37,13.99]
[1729097187162,5.4,154.44,154.38,1.3319]
[1729097187870,5.4,154.46,154.38,1.3319]
[1729097188072,13.99,154.53,154.42,13.99]
[1729097188269,69.98,154.59,154.44,13.99]
[1729097188270,5.4,154.52,154.44,13.99]
[1729097188579,3.2366,154.51,154.47,3.2373]
[1729097188873,5.4,154.53,154.47,3.19429158]
[1729097189074,5.4,154.53,154.46,13.99]
[1729097189268,3.2367,154.5,154.46,13.99]
[1729097189465,5.4,154.53,154.45,1.3319]
[1729097190670,5.4,154.53,154.46,3.28239209]
[1729097190873,22.37,154.51,154.4,8.6387]
[1729097191067,22.37,154.51,154.4,5.4]
[1729097191286,3.2375,154.46,154.4,5.4]
[1729097191476,3.2375,154.46,154.41,3.2385]
[1729097192176,5.4,154.49,154.4,5.4]
[1729097192373,3.2379,154.45,154.4,5.4]
[1729097192573,5.4,154.49,154.4,5.4]
[1729097192875,5.4,154.49,154.4,27.77]
[1729097193273,3.2376,154.46,154.41,3.2385]
[1729097194373,5.4,154.49,154.4,27.77]
[1729097195077,3.2376,154.46,154.41,3.2384]
[1729097195577,5.4,154.49,154.41,3.2384]
[1729097195777,3.2378,154.45,154.41,3.2384]
[1729097195970,6.4713,154.56,154.4,27.77]
[1729097196177,5.4,154.55,154.45,25.6076]
[1729097196483,5.4,154.57,154.48,22.37]
[1729097196673,5.4,154.57,154.48,25.68813306]
[1729097196872,3.2362,154.53,154.49,3.2368]
[1729097197166,5.4,154.57,154.48,31.08813306]
[1729097197370,3.2363,154.52,154.48,34.32513306]
[1729097198379,3.2363,154.52,154.49,3.2369]
[1729097198581,3.2363,154.52,154.48,31.08813306]
[1729097198979,3.2363,154.52,154.48,34.32513306]
[1729097199277,3.2363,154.52,154.48,31.08813306]
[1729097199480,3.2363,154.52,154.49,3.2367]
[1729097201980,5.4,154.57,154.48,32.42723306]
[1729097202281,3.2366,154.51,154.48,32.42723306]
[1729097202482,5.4,154.57,154.48,32.42723306]
[1729097202781,69.98,154.59,154.48,32.42723306]
[1729097203090,5.4,154.58,154.48,32.42723306]
[1729097204278,5.4,154.58,154.48,35.66423306]
[1729097205485,3.2365,154.51,154.48,35.66423306]
[1729097205885,5.4,154.58,154.48,32.42723306]
[1729097206182,5.4,154.58,154.48,4.65723306]
[1729097206387,22.37,154.56,154.48,3.31813306]
[1729097206588,3.2371,154.48,154.46,1.3572]
[1729097206888,5.4,154.53,154.46,4.60294555]
[1729097207087,5.4,154.53,154.46,1.3572]
[1729097207283,3.2373,154.47,154.46,4.60012951]
[1729097207493,3.2373,154.47,154.46,1.3572]
[1729097207988,3.2373,154.47,154.46,4.56193169]
[1729097208186,3.2373,154.47,154.46,1.3572]
[1729097208889,3.2372,154.48,154.46,4.60595629]
[1729097209089,5.4,154.53,154.46,1.3572]
[1729097209495,3.2373,154.47,154.46,4.65257057]
[1729097209791,3.2373,154.47,154.46,3.29537057]
[1729097209992,11.8723,154.53,154.44,3.2379]
[1729097210189,3.2375,154.46,154.42,22.37]
[1729097210808,3.2375,154.46,154.43,3.238]
[1729097211997,3.2375,154.46,154.43,17.218]
[1729097212580,25.8523,154.53,154.43,13.98]
[1729097212980,2.7878,154.55,154.46,13.98]
[1729097213181,5.38,154.54,154.46,17.18244373]
[1729097213386,3.237,154.49,154.46,20.41994373]
[1729097213889,5.38,154.54,154.46,17.18244373]
[1729097214092,3.2371,154.48,154.46,17.18244373]
[1729097214602,3.2365,154.51,154.48,3.237]
[1729097214784,1.3343,154.55,154.5,13.98]
[1729097214785,5.38,154.55,154.5,13.98]
[1729097216497,3.2369,154.49,154.47,2.7492]
[1729097216890,5.38,154.55,154.47,1.4112]
[1729097217088,3.2371,154.48,154.47,1.4112]
[1729097219597,11.8515,154.55,154.47,1.4112]
[1729097219902,3.2371,154.48,154.47,1.4112]
[1729097222009,3.2373,154.47,154.46,3.20244373]
[1729097222188,5.38,154.5,154.41,30.4977]
[1729097222503,3.2383,154.43,154.41,30.4977]
[1729097222802,6.4703,154.58,154.41,30.4977]
[1729097222990,6.4703,154.58,154.5,3.2367]
[1729097222991,5.38,154.57,154.5,3.2367]
[1729097223198,5.38,154.57,154.5,3.17633883]
[1729097223395,5.38,154.57,154.49,22.37]
[1729097223599,3.2363,154.53,154.49,25.6068]
[1729097223900,3.2363,154.53,154.49,25.55263652]
[1729097224105,3.236,154.54,154.51,3.2364]
[1729097227198,3.2361,154.53,154.5,3.2366]
[1729097228109,3.2359,154.54,154.51,3.2363]
[1729097229903,25.0511,154.62,154.49,25.55263652]
[1729097230104,2.6811,154.62,154.51,22.37]
[1729097230299,2.6811,154.62,154.54,22.37]
[1729097230495,92.27,154.67,154.58,3.2349]
[1729097230496,3.2345,154.61,154.58,3.2349]
[1729097230707,5.38,154.65,154.56,22.37]
[1729097231102,5.38,154.65,154.56,25.1334]
[1729097231907,3.234,154.63,154.56,25.1334]
[1729097233007,22.37,154.71,154.56,25.1334]
[1729097233008,5.38,154.68,154.59,22.37]
[1729097233311,5.38,154.68,154.59,31.00205533]
[1729097233513,3.2335,154.66,154.63,3.234]
[1729097233810,3.2335,154.66,154.59,31.00205533]
[1729097234209,3.2335,154.66,154.62,3.234]
[1729097234408,5.38,154.68,154.61,22.37]
[1729097234409,3.233,154.68,154.61,22.37]
[1729097234608,3.233,154.68,154.62,1.4399]
[1729097235402,3.233,154.68,154.64,3.2336]
[1729097237005,5.38,154.71,154.62,4.674]
[1729097237202,5.38,154.71,154.62,1.4399]
[1729097237608,3.2337,154.65,154.62,1.4399]
[1729097238616,3.2334,154.66,154.63,3.2339]
[1729097239116,8.216,154.72,154.64,22.37]
[1729097239706,3.2332,154.67,154.64,25.6036]
[1729097239910,3.2332,154.67,154.65,13.98]
[1729097240115,8.216,154.72,154.63,19.36]
[1729097240305,3.2337,154.65,154.63,13.98]
[1729097240825,8.216,154.72,154.63,13.98]
[1729097241114,1.4168,154.72,154.66,13.98]
[1729097241416,1.4168,154.72,154.67,3.2331]
[1729097241417,3.2326,154.7,154.67,3.2331]
[1729097241716,1.4168,154.72,154.66,13.98]
[1729097242017,3.2331,154.68,154.66,13.98]
[1729097244918,3.2329,154.68,154.67,3.30543886]
[1729097245120,1.4168,154.72,154.63,13.98]
[1729097245617,3.2337,154.65,154.63,13.98]
[1729097248123,3.2338,154.64,154.63,13.98]
[1729097248419,19.36,154.69,154.57,1.395]
[1729097248607,19.36,154.69,154.57,15.375]
[1729097248608,13.98,154.67,154.57,15.375]
[1729097248805,3.2347,154.6,154.57,15.375]
[1729097249224,3.2347,154.6,154.57,21.8032875]
[1729097249811,19.36,154.65,154.57,3.1931875]
[1729097250010,1.3729,154.64,154.55,1.3973]
[1729097250520,3.2352,154.58,154.56,13.98]
[1729097251316,1.3729,154.64,154.56,13.98]
[1729097251520,1.3729,154.64,154.58,13.98]
[1729097251711,1.3729,154.64,154.58,17.13987122]
[1729097252424,3.2346,154.6,154.58,17.13987122]
[1729097253522,1.3729,154.64,154.58,17.13987122]
[1729097254110,3.2348,154.6,154.58,17.13987122]
[1729097255517,1.3729,154.64,154.58,17.13987122]
[1729097255716,3.2341,154.63,154.6,13.98]
[1729097255920,5.38,154.65,154.6,13.98]
[1729097256420,3.2342,154.62,154.6,20.42007015]
[1729097256619,5.38,154.67,154.6,17.18557015]
[1729097256814,5.38,154.67,154.62,13.98]
[1729097257419,3.2337,154.65,154.62,17.214]
[1729097257615,3.2337,154.65,154.62,20.37395653]
[1729097257824,5.38,154.67,154.62,17.13995653]
[1729097258024,3.2333,154.66,154.64,17.2138]
[1729097258529,3.2333,154.66,154.64,20.52774294]
[1729097258723,2.6817,154.72,154.64,17.29394294]
[1729097258927,5.38,154.71,154.64,17.29394294]
[1729097260033,3.2331,154.68,154.65,3.2334]
[1729097260535,3.2331,154.68,154.64,17.29394294]
[1729097260536,5.38,154.71,154.66,13.98]
[1729097260925,3.2328,154.69,154.66,20.37484093]
[1729097263930,3.2325,154.7,154.67,3.233]
[1729097264319,5.38,154.74,154.66,17.14164093]
[1729097264523,5.38,154.74,154.66,20.37484093]
[1729097264524,3.2329,154.69,154.66,20.37484093]
[1729097265040,3.2324,154.71,154.68,3.2329]
[1729097265228,5.38,154.73,154.68,3.2329]
[1729097266432,3.2325,154.7,154.68,3.2329]
[1729097266632,3.2325,154.7,154.67,3.233]
[1729097267125,3.2328,154.69,154.66,17.14164093]
[1729097267735,3.2325,154.71,154.68,3.2328]
[1729097267942,3.2325,154.71,154.68,17.2128]
[1729097268324,5.38,154.75,154.68,13.98]
[1729097268535,3.2319,154.73,154.7,3.2324]
[1729097268734,5.38,154.75,154.69,1.4405]
[1729097269437,3.2323,154.72,154.69,4.6731]
[1729097270139,3.2323,154.71,154.69,4.6731]
[1729097271325,3.2323,154.72,154.69,4.6731]
[1729097272230,73.37245568,154.77,154.7,13.98]
[1729097272432,5.38,154.78,154.7,13.98]
[1729097272735,5.38,154.78,154.72,13.98]
[1729097272938,3.2318,154.74,154.72,17.212]
[1729097273440,3.2319,154.73,154.72,13.98]
[1729097276732,5.38,154.78,154.7,13.98]
[1729097278537,3.232,154.73,154.7,13.98]
[1729097279440,3.232,154.73,154.71,3.2322]
[1729097280340,5.38,154.78,154.7,13.98]
[1729097280638,19.36,154.78,154.69,1.4405]
[1729097280836,13.98,154.76,154.66,3.16164093]
[1729097281036,24.83,154.78,154.63,17.2138]
[1729097281037,13.98,154.73,154.63,17.2138]
[1729097281239,5.38,154.72,154.63,20.49145404]
[1729097281441,3.2334,154.66,154.63,20.49145404]
[1729097281644,2.7454,154.75,154.65,13.98]
[1729097281947,5.38,154.74,154.69,13.98]
[1729097282139,3.2325,154.7,154.69,13.98]
[1729097282340,6.7206,154.75,154.69,13.98]
[1729097283241,3.2324,154.71,154.69,13.98]
[1729097285948,5.38,154.77,154.69,13.98]
[1729097286155,5.38,154.77,154.71,13.98]
[1729097286644,3.232,154.73,154.71,13.98]
[1729097286845,3.232,154.73,154.71,17.16669138]
[1729097287042,5.38,154.77,154.71,3.18669138]
[1729097287248,3.2325,154.71,154.69,19.36]
[1729097287647,3.2325,154.71,154.69,13.98]
[1729097293647,3.2318,154.74,154.69,13.98]
[1729097293847,3.2318,154.74,154.66,8.1289]
[1729097293848,3.2318,154.74,154.72,13.98]
[1729097294154,3.2318,154.74,154.72,17.27412382]
[1729097295863,3.2319,154.73,154.72,3.29412382]
[1729097296156,5.38,154.77,154.7,13.98]
[1729097296550,3.2321,154.72,154.7,17.2124]
[1729097296754,5.38,154.77,154.7,13.98]
[1729097296951,15.3406,154.76,154.66,15.3866]
[1729097297456,13.98,154.73,154.63,17.25765404]
[1729097297652,6.7163,154.72,154.63,13.98]
[1729097297847,6.7163,154.72,154.63,17.24372884]
[1729097298052,3.2325,154.71,154.67,3.2331]
[1729097298358,6.7163,154.72,154.68,13.98]
[1729097298359,5.38,154.72,154.68,13.98]
[1729097298559,5.38,154.72,154.68,17.18229546]
[1729097298754,3.2324,154.71,154.68,20.41519546]
[1729097299958,3.2321,154.72,154.69,3.2325]
[1729097300162,5.38,154.75,154.69,3.2325]
[1729097301357,3.2323,154.71,154.68,20.41509546]
[1729097302753,3.2327,154.69,154.68,17.18229546]
[1729097302953,3.2327,154.69,154.68,3.20229546]
[1729097303151,5.38,154.71,154.64,15.3209]
[1729097303350,5.38,154.71,154.64,18.5022084]
[1729097303553,3.2335,154.66,154.64,18.5022084]
[1729097304358,3.2335,154.66,154.64,21.7359084]
[1729097305162,5.38,154.71,154.64,21.7359084]
[1729097306162,3.2333,154.67,154.64,21.7359084]
[1729097306865,3.2335,154.66,154.64,21.7359084]
[1729097307067,5.38,154.71,154.64,18.5022084]
[1729097307273,19.36,154.71,154.64,3.1813084]
[1729097307462,19.36,154.71,154.61,106.52378368]
[1729097307463,3.2338,154.64,154.62,3.2341]
[1729097307665,3.2338,154.64,154.62,6.46699784]
[1729097308058,3.234,154.63,154.62,3.23289784]
[1729097308263,5.38,154.67,154.59,15.3669]
[1729097308765,5.38,154.67,154.59,18.6015]
[1729097309167,5.38,154.67,154.6,3.2346]
[1729097309362,5.38,154.67,154.6,6.53507892]
[1729097309873,3.2341,154.63,154.6,6.53507892]
[1729097311475,21.7648,154.7,154.6,3.30047892]
[1729097311669,3.2336,154.65,154.64,13.98]
[1729097311875,3.2336,154.65,154.64,17.29178429]
[1729097312577,3.2336,154.65,154.64,3.31178429]
[1729097312773,5.38,154.69,154.62,13.98]
[1729097313081,3.2338,154.64,154.62,13.98]
[1729097313265,5.38,154.69,154.62,3.2581024]
[1729097313470,3.2339,154.64,154.61,13.98]
[1729097313670,5.38,154.69,154.61,17.28272951]
[1729097313978,5.38,154.69,154.62,3.234]
[1729097314574,3.2337,154.65,154.62,3.234]
[1729097315990,5.38,154.68,154.61,17.28272951]
[1729097316190,3.2337,154.65,154.61,17.28272951]
[1729097316689,3.2337,154.65,154.62,3.234]
[1729097317188,5.38,154.68,154.62,3.234]
[1729097317386,3.2338,154.64,154.62,3.234]
[1729097321085,1.3195,154.7,154.61,17.28272951]
[1729097321287,3.2334,154.66,154.63,3.2339]
[1729097321486,5.38,154.69,154.63,3.2339]
[1729097322487,3.2336,154.65,154.63,3.2339]
[1729097323696,5.38,154.69,154.61,17.28272951]
[1729097323892,5.38,154.69,154.62,3.2341]
[1729097324693,3.2337,154.65,154.62,3.2341]
[1729097326200,3.2337,154.65,154.61,17.28272951]
[1729097326393,3.2337,154.65,154.62,3.2341]
[1729097327794,3.2332,154.67,154.64,3.2336]
[1729097327998,5.38,154.69,154.64,3.2336]
[1729097328499,3.2334,154.66,154.64,3.2336]
[1729097331399,3.2336,154.65,154.63,17.2139]
[1729097331890,5.38,154.69,154.63,17.2139]
[1729097333496,3.2334,154.66,154.64,3.2337]
[1729097335194,5.38,154.69,154.61,17.28272951]
[1729097335395,5.38,154.69,154.61,13.98]
[1729097335800,3.2336,154.65,154.63,8.94]
[1729097336399,3.2336,154.65,154.63,15.35277982]
[1729097337397,3.2333,154.67,154.64,12.1736]
[1729097337708,69.82,154.72,154.66,8.94]
[1729097338000,3.2328,154.69,154.67,12.1731]
[1729097338400,5.36,154.71,154.67,8.94]
[1729097339299,3.2329,154.68,154.67,8.94]
[1729097339505,3.2329,154.68,154.65,3.2335]
[1729097339705,3.2329,154.68,154.66,8.94]
[1729097340296,5.36,154.71,154.66,8.94]
[1729097340501,3.2336,154.65,154.63,12.1738]
[1729097341204,14.3,154.67,154.6,3.22275887]
[1729097341397,8.94,154.64,154.59,1.3869]
[1729097341597,8.94,154.65,154.6,8.94]
[1729097341798,3.2341,154.63,154.6,6.41760125]
[1729097343406,1.3771,154.7,154.63,3.2338]
[1729097343608,5.36,154.69,154.63,13.97]
[1729097344109,3.2333,154.66,154.63,20.46124516]